[Event "Early-Titled-Tuesday-Blitz-October-17-2023"]
[Site "Chess.com"]
[Date "2023.10.17"]
[Round "11"]
[White "FunnyDuck66"]
[Black "karinachess1"]
[Result "1-0"]
[WhiteElo "2509"]
[BlackElo "2603"]
[TimeControl "180+1"]
[EndTime "10:08:41 PDT"]
[Termination "FunnyDuck66 won by resignation"]

1. d4 {[%clk 0:03:00.9]} 1... Nf6 {[%clk 0:02:59.7]} 2. Nf3 {[%clk 0:03:00.8]}
2... e6 {[%clk 0:02:58.6]} 3. Bg5 {[%clk 0:02:59.5]} 3... d5 {[%clk 0:02:56.7]}
4. Nbd2 {[%clk 0:02:59.2]} 4... Be7 {[%clk 0:02:56.5]} 5. e3 {[%clk 0:02:57.5]}
5... O-O {[%clk 0:02:56.2]} 6. Bd3 {[%clk 0:02:57.1]} 6... c5 {[%clk 0:02:56.3]}
7. c3 {[%clk 0:02:57.2]} 7... b6 {[%clk 0:02:54.5]} 8. O-O {[%clk 0:02:57]} 8...
Ba6 {[%clk 0:02:53.4]} 9. Bxa6 {[%clk 0:02:56.1]} 9... Nxa6 {[%clk 0:02:54.3]}
10. Ne5 {[%clk 0:02:56.3]} 10... Nb8 {[%clk 0:02:50.6]} 11. f4 {[%clk
0:02:53.6]} 11... Ne4 {[%clk 0:02:42.3]} 12. Bxe7 {[%clk 0:02:53.4]} 12... Qxe7
{[%clk 0:02:43.2]} 13. Nxe4 {[%clk 0:02:53.7]} 13... dxe4 {[%clk 0:02:44.1]} 14.
Qc2 {[%clk 0:02:48.2]} 14... Qb7 {[%clk 0:02:20.6]} 15. Nc4 {[%clk 0:02:41.6]}
15... cxd4 {[%clk 0:02:06.9]} 16. exd4 {[%clk 0:02:39.2]} 16... f5 {[%clk
0:01:57.3]} 17. Ne3 {[%clk 0:02:29.4]} 17... Nd7 {[%clk 0:01:53.1]} 18. Qb3
{[%clk 0:02:27.9]} 18... Rae8 {[%clk 0:01:47.8]} 19. Rad1 {[%clk 0:02:23.4]}
19... Kh8 {[%clk 0:01:46.6]} 20. a4 {[%clk 0:02:08.5]} 20... Qc8 {[%clk
0:01:38.7]} 21. a5 {[%clk 0:02:02.4]} 21... Qc6 {[%clk 0:01:12.7]} 22. Qb4
{[%clk 0:01:50.4]} 22... Rb8 {[%clk 0:01:05.6]} 23. a6 {[%clk 0:01:33.7]} 23...
Nf6 {[%clk 0:01:02.7]} 24. c4 {[%clk 0:01:26.2]} 24... Rbd8 {[%clk 0:00:55]} 25.
Rd2 {[%clk 0:01:19.5]} 25... Rd7 {[%clk 0:00:55]} 26. Qxf8+ {[%clk 0:01:18.7]}
26... Ng8 {[%clk 0:00:49.8]} 27. Qb4 {[%clk 0:01:17.7]} 27... Qc8 {[%clk
0:00:42.9]} 28. d5 {[%clk 0:01:17.5]} 28... exd5 {[%clk 0:00:39.3]} 29. Nxd5
{[%clk 0:01:18.4]} 29... Qxa6 {[%clk 0:00:35.6]} 30. Rfd1 {[%clk 0:01:16.7]}
30... Qb7 {[%clk 0:00:31.6]} 31. Qf8 {[%clk 0:01:11.1]} 31... Rf7 {[%clk
0:00:29.1]} 32. Qe8 {[%clk 0:01:07]} 32... h6 {[%clk 0:00:28.3]} 33. Ne3 {[%clk
0:01:03.2]} 33... Re7 {[%clk 0:00:25.6]} 34. Qg6 {[%clk 0:01:00.2]} 34... Qc7
{[%clk 0:00:16.8]} 35. Rd8 {[%clk 0:00:59.7]} 35... Qc5 {[%clk 0:00:16.8]} 36.
Rxg8+ {[%clk 0:00:58.5]} 36... Kxg8 {[%clk 0:00:17.7]} 37. Rd8+ {[%clk
0:00:58.1]} 37... Re8 {[%clk 0:00:18.6]} 38. Rxe8+ {[%clk 0:00:58.6]} 1-0

[Event "Early-Titled-Tuesday-Blitz-October-17-2023"]
[Site "Chess.com"]
[Date "2023.10.17"]
[Round "11"]
[White "suyu28"]
[Black "Ural_bogatyr"]
[Result "1-0"]
[WhiteElo "2739"]
[BlackElo "2549"]
[TimeControl "180+1"]
[EndTime "10:08:44 PDT"]
[Termination "suyu28 won by resignation"]

1. e4 {[%clk 0:03:00.9]} 1... e5 {[%clk 0:02:59.7]} 2. Nf3 {[%clk 0:02:55.8]}
2... Nc6 {[%clk 0:03:00.2]} 3. Bb5 {[%clk 0:02:55.4]} 3... a6 {[%clk 0:03:00.1]}
4. Ba4 {[%clk 0:02:55.2]} 4... Bc5 {[%clk 0:03:00.7]} 5. O-O {[%clk 0:02:54.7]}
5... Nge7 {[%clk 0:03:01.1]} 6. c3 {[%clk 0:02:52.4]} 6... Ba7 {[%clk
0:03:00.9]} 7. d3 {[%clk 0:02:47]} 7... Ng6 {[%clk 0:03:00.1]} 8. Re1 {[%clk
0:02:45.1]} 8... O-O {[%clk 0:02:58.1]} 9. Be3 {[%clk 0:02:45.2]} 9... Bxe3
{[%clk 0:02:57.3]} 10. Rxe3 {[%clk 0:02:45.2]} 10... d6 {[%clk 0:02:51.9]} 11.
Nbd2 {[%clk 0:02:43.2]} 11... f5 {[%clk 0:02:50.4]} 12. exf5 {[%clk 0:02:42.3]}
12... Bxf5 {[%clk 0:02:51.3]} 13. d4 {[%clk 0:02:42.4]} 13... exd4 {[%clk
0:02:24.5]} 14. cxd4 {[%clk 0:02:42.2]} 14... Kh8 {[%clk 0:02:22.5]} 15. Bxc6
{[%clk 0:02:39.6]} 15... bxc6 {[%clk 0:02:22.4]} 16. Qa4 {[%clk 0:02:39.3]}
16... Bd7 {[%clk 0:02:14.1]} 17. Rae1 {[%clk 0:02:38.6]} 17... c5 {[%clk
0:02:10.4]} 18. Qc4 {[%clk 0:02:34.6]} 18... cxd4 {[%clk 0:02:04.2]} 19. Qxd4
{[%clk 0:02:25.5]} 19... Rb8 {[%clk 0:01:56]} 20. b3 {[%clk 0:02:24.9]} 20...
Rb5 {[%clk 0:01:48.7]} 21. Qc4 {[%clk 0:02:17.5]} 21... a5 {[%clk 0:01:40.7]}
22. Qc3 {[%clk 0:02:15.5]} 22... Rc5 {[%clk 0:01:39.2]} 23. Qb2 {[%clk
0:02:11.4]} 23... Rh5 {[%clk 0:01:30.8]} 24. Ne4 {[%clk 0:02:04.7]} 24... h6
{[%clk 0:01:28]} 25. Ng3 {[%clk 0:02:00.7]} 25... Rc5 {[%clk 0:01:27.7]} 26. Nd4
{[%clk 0:01:56.6]} 26... Qf6 {[%clk 0:01:24.3]} 27. Ne4 {[%clk 0:01:43.4]} 27...
Qh4 {[%clk 0:01:05.8]} 28. Nxc5 {[%clk 0:01:38]} 28... dxc5 {[%clk 0:01:06.7]}
29. Nf3 {[%clk 0:01:19.7]} 29... Qg4 {[%clk 0:01:00.3]} 30. Ne5 {[%clk
0:01:17.3]} 30... Nxe5 {[%clk 0:00:58.8]} 31. Qxe5 {[%clk 0:01:16.6]} 31... Qd4
{[%clk 0:00:49.9]} 32. Qxc7 {[%clk 0:00:54]} 32... Bg4 {[%clk 0:00:41.4]} 33. h3
{[%clk 0:00:47]} 33... Bh5 {[%clk 0:00:39.7]} 34. Qe5 {[%clk 0:00:42.5]} 34...
Qd2 {[%clk 0:00:37.3]} 35. Qxh5 {[%clk 0:00:39.4]} 1-0

[Event "Early-Titled-Tuesday-Blitz-October-17-2023"]
[Site "Chess.com"]
[Date "2023.10.17"]
[Round "11"]
[White "Khuslen2008"]
[Black "Mr_Lion22"]
[Result "0-1"]
[WhiteElo "2305"]
[BlackElo "2491"]
[TimeControl "180+1"]
[EndTime "10:08:52 PDT"]
[Termination "Mr_Lion22 won by checkmate"]

1. d4 {[%clk 0:02:59.7]} 1... d5 {[%clk 0:02:55]} 2. c4 {[%clk 0:02:59.4]} 2...
e6 {[%clk 0:02:55.5]} 3. Nc3 {[%clk 0:02:58.9]} 3... c6 {[%clk 0:02:56.2]} 4. e4
{[%clk 0:02:57.6]} 4... dxe4 {[%clk 0:02:52.1]} 5. Nxe4 {[%clk 0:02:58]} 5...
Bb4+ {[%clk 0:02:52.9]} 6. Bd2 {[%clk 0:02:56.2]} 6... Qxd4 {[%clk 0:02:48.4]}
7. Bxb4 {[%clk 0:02:56.1]} 7... Qxe4+ {[%clk 0:02:49.1]} 8. Be2 {[%clk 0:02:56]}
8... Na6 {[%clk 0:02:49.3]} 9. Ba5 {[%clk 0:02:54.8]} 9... b6 {[%clk 0:02:49.6]}
10. Bc3 {[%clk 0:02:54]} 10... f6 {[%clk 0:02:29]} 11. Nf3 {[%clk 0:02:54]}
11... Bb7 {[%clk 0:02:28.4]} 12. b4 {[%clk 0:02:49.1]} 12... Rd8 {[%clk
0:02:20.8]} 13. Qb3 {[%clk 0:02:31.6]} 13... Ne7 {[%clk 0:02:20.9]} 14. Qb2
{[%clk 0:02:30.6]} 14... O-O {[%clk 0:02:19.6]} 15. O-O {[%clk 0:02:30.7]} 15...
c5 {[%clk 0:02:19.2]} 16. b5 {[%clk 0:02:23.7]} 16... Nc7 {[%clk 0:02:12]} 17.
Rfe1 {[%clk 0:02:23.2]} 17... Qg6 {[%clk 0:02:10.1]} 18. Nh4 {[%clk 0:02:03.1]}
18... Qh6 {[%clk 0:02:04.8]} 19. Bf3 {[%clk 0:01:59.1]} 19... Bxf3 {[%clk
0:01:46.3]} 20. Nxf3 {[%clk 0:01:58.8]} 20... Nf5 {[%clk 0:01:46.9]} 21. a4
{[%clk 0:01:53.3]} 21... e5 {[%clk 0:01:46.5]} 22. a5 {[%clk 0:01:51.2]} 22...
Ne6 {[%clk 0:01:43.1]} 23. axb6 {[%clk 0:01:45]} 23... axb6 {[%clk 0:01:44]} 24.
Ra6 {[%clk 0:01:43.7]} 24... Rd3 {[%clk 0:01:37.6]} 25. Nd2 {[%clk 0:01:12.2]}
25... Nf4 {[%clk 0:01:19.9]} 26. Ne4 {[%clk 0:01:02]} 26... Nh4 {[%clk
0:01:10.1]} 27. Ng3 {[%clk 0:00:21.8]} 27... Nf3+ {[%clk 0:00:50.8]} 28. Kf1
{[%clk 0:00:10.4]} 28... Nxh2+ {[%clk 0:00:50.9]} 29. Kg1 {[%clk 0:00:10.5]}
29... Ng4 {[%clk 0:00:51.5]} 30. Rxb6 {[%clk 0:00:04.7]} 30... Qh2+ {[%clk
0:00:51.8]} 31. Kf1 {[%clk 0:00:05]} 31... Qxg2# {[%clk 0:00:51.8]} 0-1

[Event "Early-Titled-Tuesday-Blitz-October-17-2023"]
[Site "Chess.com"]
[Date "2023.10.17"]
[Round "11"]
[White "Arystanner"]
[Black "Firouzja2003"]
[Result "1-0"]
[WhiteElo "2852"]
[BlackElo "3087"]
[TimeControl "180+1"]
[EndTime "10:09:00 PDT"]
[Termination "Arystanner won on time"]

1. e4 {[%clk 0:03:00.9]} 1... c6 {[%clk 0:02:59.6]} 2. d4 {[%clk 0:03:00.9]}
2... d5 {[%clk 0:02:59.8]} 3. exd5 {[%clk 0:03:01.8]} 3... cxd5 {[%clk 0:03:00]}
4. Nf3 {[%clk 0:03:02.6]} 4... Nc6 {[%clk 0:02:58.5]} 5. c3 {[%clk 0:03:03.2]}
5... Bg4 {[%clk 0:02:54.6]} 6. h3 {[%clk 0:03:03.4]} 6... Bh5 {[%clk 0:02:54.6]}
7. Qb3 {[%clk 0:03:03.5]} 7... Qd7 {[%clk 0:02:40.9]} 8. Ne5 {[%clk 0:03:03.6]}
8... Nxe5 {[%clk 0:02:38.7]} 9. dxe5 {[%clk 0:03:04.5]} 9... a6 {[%clk
0:02:38.6]} 10. c4 {[%clk 0:03:05.1]} 10... dxc4 {[%clk 0:02:25]} 11. Bxc4
{[%clk 0:03:06]} 11... e6 {[%clk 0:02:25.5]} 12. Nc3 {[%clk 0:03:06.6]} 12...
Ne7 {[%clk 0:02:21.2]} 13. O-O {[%clk 0:03:00.5]} 13... Nc6 {[%clk 0:02:20.4]}
14. g4 {[%clk 0:03:00.6]} 14... Bg6 {[%clk 0:02:19.4]} 15. Rd1 {[%clk 0:03:01]}
15... Qc7 {[%clk 0:02:13.6]} 16. Bf1 {[%clk 0:02:54.2]} 16... Be7 {[%clk
0:02:04.9]} 17. Bg2 {[%clk 0:02:51.5]} 17... O-O {[%clk 0:02:00.7]} 18. Be3
{[%clk 0:02:51.9]} 18... Rab8 {[%clk 0:01:26.8]} 19. f4 {[%clk 0:02:40.3]} 19...
Na5 {[%clk 0:01:26.2]} 20. Qb6 {[%clk 0:02:40.5]} 20... Qxb6 {[%clk 0:01:26.1]}
21. Bxb6 {[%clk 0:02:41.4]} 21... Nc4 {[%clk 0:01:26.9]} 22. Ba7 {[%clk
0:02:42]} 22... Rbd8 {[%clk 0:01:16.4]} 23. b3 {[%clk 0:02:35.7]} 23... Nb2
{[%clk 0:01:12.8]} 24. Rxd8 {[%clk 0:02:33.4]} 24... Rxd8 {[%clk 0:01:13.7]} 25.
Rf1 {[%clk 0:02:17.3]} 25... Bd3 {[%clk 0:00:58.5]} 26. Rf2 {[%clk 0:02:16.5]}
26... Bb4 {[%clk 0:00:58.9]} 27. Rxb2 {[%clk 0:01:55]} 27... Bxc3 {[%clk
0:00:59.1]} 28. Rf2 {[%clk 0:01:55.2]} 28... g5 {[%clk 0:00:58.5]} 29. Bb6
{[%clk 0:01:52.1]} 29... Rd7 {[%clk 0:00:54.1]} 30. fxg5 {[%clk 0:01:47.2]}
30... Bxe5 {[%clk 0:00:54.1]} 31. Rd2 {[%clk 0:01:46.1]} 31... Bf4 {[%clk
0:00:38.6]} 32. Rd1 {[%clk 0:01:46]} 32... Bxg5 {[%clk 0:00:24.6]} 33. Be4
{[%clk 0:01:45.4]} 33... Bb5 {[%clk 0:00:25.3]} 34. Rxd7 {[%clk 0:01:45.3]}
34... Bxd7 {[%clk 0:00:26.2]} 35. Bxb7 {[%clk 0:01:45.8]} 35... Bb5 {[%clk
0:00:26.9]} 36. a4 {[%clk 0:01:44.6]} 36... Bd3 {[%clk 0:00:26.7]} 37. b4 {[%clk
0:01:44.9]} 37... Bd2 {[%clk 0:00:16.2]} 38. b5 {[%clk 0:01:43.7]} 38... axb5
{[%clk 0:00:16]} 39. a5 {[%clk 0:01:44.4]} 39... b4 {[%clk 0:00:14.7]} 40. a6
{[%clk 0:01:44.1]} 40... Bxa6 {[%clk 0:00:10]} 41. Bxa6 {[%clk 0:01:45]} 41...
b3 {[%clk 0:00:10.9]} 42. Bd4 {[%clk 0:01:43.5]} 42... Bc1 {[%clk 0:00:11]} 43.
Bd3 {[%clk 0:01:42.6]} 43... b2 {[%clk 0:00:11.9]} 44. Kf2 {[%clk 0:01:42.3]}
44... h6 {[%clk 0:00:05.9]} 45. Bf6 {[%clk 0:01:42.6]} 45... Kf8 {[%clk
0:00:05.8]} 46. Ke2 {[%clk 0:01:42.8]} 46... Ke8 {[%clk 0:00:05.8]} 47. Kd1
{[%clk 0:01:43.4]} 47... Kd7 {[%clk 0:00:06]} 48. Kc2 {[%clk 0:01:43.8]} 48...
Kd6 {[%clk 0:00:06.6]} 49. h4 {[%clk 0:01:40.7]} 49... Kd5 {[%clk 0:00:06]} 50.
h5 {[%clk 0:01:39.8]} 50... e5 {[%clk 0:00:04]} 51. g5 {[%clk 0:01:40.2]} 51...
Ke6 {[%clk 0:00:04.4]} 52. Bd8 {[%clk 0:01:34.5]} 52... hxg5 {[%clk 0:00:03]}
53. h6 {[%clk 0:01:34.5]} 1-0

[Event "Early-Titled-Tuesday-Blitz-October-17-2023"]
[Site "Chess.com"]
[Date "2023.10.17"]
[Round "11"]
[White "KorolDimitriy75"]
[Black "Deadmold"]
[Result "0-1"]
[WhiteElo "2352"]
[BlackElo "2215"]
[TimeControl "180+1"]
[EndTime "10:09:07 PDT"]
[Termination "Deadmold won by checkmate"]

1. d4 {[%clk 0:03:00.9]} 1... d5 {[%clk 0:02:59.3]} 2. c4 {[%clk 0:03:01.2]}
2... e6 {[%clk 0:02:59.3]} 3. Nc3 {[%clk 0:03:01.5]} 3... c5 {[%clk 0:02:59.5]}
4. cxd5 {[%clk 0:03:01.1]} 4... exd5 {[%clk 0:02:59.5]} 5. Nf3 {[%clk
0:03:01.1]} 5... Nc6 {[%clk 0:02:59.8]} 6. g3 {[%clk 0:03:01.3]} 6... c4 {[%clk
0:03:00.2]} 7. Bg2 {[%clk 0:02:57.6]} 7... Bb4 {[%clk 0:03:00.1]} 8. O-O {[%clk
0:02:57.4]} 8... Nge7 {[%clk 0:03:00.2]} 9. e4 {[%clk 0:02:51]} 9... O-O {[%clk
0:02:59.7]} 10. Nxd5 {[%clk 0:02:42.8]} 10... Nxd5 {[%clk 0:03:00.6]} 11. exd5
{[%clk 0:02:43.1]} 11... Qxd5 {[%clk 0:03:00.7]} 12. Be3 {[%clk 0:02:42.6]}
12... Qb5 {[%clk 0:02:36.5]} 13. d5 {[%clk 0:02:18.2]} 13... Rd8 {[%clk
0:02:32.3]} 14. Nd4 {[%clk 0:01:59.6]} 14... Nxd4 {[%clk 0:02:32.3]} 15. Qxd4
{[%clk 0:01:42.8]} 15... Bf5 {[%clk 0:02:26.3]} 16. Rfd1 {[%clk 0:01:13]} 16...
Ba5 {[%clk 0:02:15.3]} 17. Rac1 {[%clk 0:00:52.6]} 17... Bb6 {[%clk 0:01:32.5]}
18. Qxc4 {[%clk 0:00:50.4]} 18... Qxb2 {[%clk 0:01:32.2]} 19. Bxb6 {[%clk
0:00:45.9]} 19... Qxb6 {[%clk 0:01:32.1]} 20. Qc7 {[%clk 0:00:42.9]} 20... Qb2
{[%clk 0:01:12]} 21. Qf4 {[%clk 0:00:24.1]} 21... g6 {[%clk 0:01:02.3]} 22. d6
{[%clk 0:00:21.6]} 22... Rd7 {[%clk 0:00:50.7]} 23. Bd5 {[%clk 0:00:19.5]} 23...
Rad8 {[%clk 0:00:48.4]} 24. Rc7 {[%clk 0:00:15.5]} 24... Rxd6 {[%clk 0:00:44.5]}
25. Bxf7+ {[%clk 0:00:13]} 25... Kh8 {[%clk 0:00:40.9]} 26. Rxd6 {[%clk
0:00:11.6]} 26... Rxd6 {[%clk 0:00:38.4]} 27. Qxd6 {[%clk 0:00:11.2]} 27... Qb1+
{[%clk 0:00:38.6]} 28. Kg2 {[%clk 0:00:10.5]} 28... Qe4+ {[%clk 0:00:36.6]} 29.
Kg1 {[%clk 0:00:07.4]} 29... Qb1+ {[%clk 0:00:35.8]} 30. Kg2 {[%clk 0:00:07.4]}
30... Qe4+ {[%clk 0:00:36]} 31. Kf1 {[%clk 0:00:04.7]} 31... Bh3+ {[%clk
0:00:33.1]} 32. Kg1 {[%clk 0:00:04.1]} 32... Qg2# {[%clk 0:00:33.2]} 0-1

[Event "Early-Titled-Tuesday-Blitz-October-17-2023"]
[Site "Chess.com"]
[Date "2023.10.17"]
[Round "11"]
[White "a-z30"]
[Black "Kostya0705"]
[Result "1/2-1/2"]
[WhiteElo "2520"]
[BlackElo "2633"]
[TimeControl "180+1"]
[EndTime "10:09:09 PDT"]
[Termination "Game drawn by repetition"]

1. d3 {[%clk 0:02:32.3]} 1... d5 {[%clk 0:02:59.1]} 2. Nf3 {[%clk 0:02:33]} 2...
Nf6 {[%clk 0:02:58.2]} 3. g3 {[%clk 0:02:33.9]} 3... c5 {[%clk 0:02:57.2]} 4.
Bg2 {[%clk 0:02:34.7]} 4... Nc6 {[%clk 0:02:57.3]} 5. O-O {[%clk 0:02:35.6]}
5... e5 {[%clk 0:02:57]} 6. c4 {[%clk 0:02:36.5]} 6... Be7 {[%clk 0:02:52.9]} 7.
Bg5 {[%clk 0:02:27.1]} 7... Be6 {[%clk 0:02:51.3]} 8. Bxf6 {[%clk 0:02:25.8]}
8... Bxf6 {[%clk 0:02:50.6]} 9. cxd5 {[%clk 0:02:26.7]} 9... Bxd5 {[%clk
0:02:50.4]} 10. Nc3 {[%clk 0:02:27.6]} 10... Be6 {[%clk 0:02:50.5]} 11. Rc1
{[%clk 0:02:11.8]} 11... Be7 {[%clk 0:02:45.7]} 12. Ne4 {[%clk 0:02:03.2]} 12...
b6 {[%clk 0:02:44.4]} 13. Qa4 {[%clk 0:02:02.3]} 13... Qd7 {[%clk 0:02:41.1]}
14. b4 {[%clk 0:01:38.7]} 14... Nxb4 {[%clk 0:02:33.4]} 15. Qxd7+ {[%clk
0:01:37.2]} 15... Bxd7 {[%clk 0:02:33.7]} 16. Nxe5 {[%clk 0:01:37.1]} 16... Nxa2
{[%clk 0:02:29.6]} 17. Ra1 {[%clk 0:01:25.6]} 17... Nb4 {[%clk 0:02:26.1]} 18.
Nc3 {[%clk 0:00:48.1]} 18... Rd8 {[%clk 0:02:11]} 19. Rxa7 {[%clk 0:00:44.2]}
19... Be6 {[%clk 0:02:04.2]} 20. Nc6 {[%clk 0:00:38.3]} 20... Nxc6 {[%clk
0:02:01.3]} 21. Bxc6+ {[%clk 0:00:37.4]} 21... Bd7 {[%clk 0:02:02.2]} 22. Rxd7
{[%clk 0:00:31.8]} 22... Rxd7 {[%clk 0:02:03.1]} 23. Nd5 {[%clk 0:00:17.7]}
23... Kd8 {[%clk 0:01:37.3]} 24. Bxd7 {[%clk 0:00:17.5]} 24... Kxd7 {[%clk
0:01:38.2]} 25. Nxb6+ {[%clk 0:00:17.9]} 25... Kc6 {[%clk 0:01:38.7]} 26. Nc4
{[%clk 0:00:18.8]} 26... Ra8 {[%clk 0:01:37.5]} 27. Ne5+ {[%clk 0:00:18.3]}
27... Kd5 {[%clk 0:01:36.8]} 28. Nc4 {[%clk 0:00:16.1]} 28... Ra2 {[%clk
0:01:36.4]} 29. e3 {[%clk 0:00:14]} 29... Bf6 {[%clk 0:01:34.6]} 30. Rd1 {[%clk
0:00:14.1]} 30... h5 {[%clk 0:01:31]} 31. h3 {[%clk 0:00:14.1]} 31... g6 {[%clk
0:01:29.5]} 32. Kg2 {[%clk 0:00:14.7]} 32... Bc3 {[%clk 0:01:27.5]} 33. Kf3
{[%clk 0:00:15.1]} 33... f6 {[%clk 0:01:24.9]} 34. g4 {[%clk 0:00:15.3]} 34...
hxg4+ {[%clk 0:01:24.1]} 35. hxg4 {[%clk 0:00:16.2]} 35... Be5 {[%clk
0:01:20.2]} 36. Rd2 {[%clk 0:00:15.6]} 36... Ra1 {[%clk 0:01:15.4]} 37. Rc2
{[%clk 0:00:15.4]} 37... Bc7 {[%clk 0:01:11.6]} 38. Nd2 {[%clk 0:00:15.6]} 38...
Ra3 {[%clk 0:01:10]} 39. Ke2 {[%clk 0:00:13.2]} 39... f5 {[%clk 0:01:07]} 40.
gxf5 {[%clk 0:00:12.5]} 40... gxf5 {[%clk 0:01:07.9]} 41. Nc4 {[%clk 0:00:11.6]}
41... Ra1 {[%clk 0:01:06.9]} 42. Nd2 {[%clk 0:00:11.2]} 42... Ra3 {[%clk
0:01:05.8]} 43. Nf3 {[%clk 0:00:11]} 43... Bd6 {[%clk 0:01:04.6]} 44. Nd2 {[%clk
0:00:10.8]} 44... Ra1 {[%clk 0:01:02.2]} 45. Nc4 {[%clk 0:00:11.7]} 45... Bc7
{[%clk 0:01:01.9]} 46. Rb2 {[%clk 0:00:11.4]} 46... Kc6 {[%clk 0:00:57.2]} 47.
Rc2 {[%clk 0:00:11.2]} 47... Kd5 {[%clk 0:00:57.1]} 1/2-1/2

[Event "Early-Titled-Tuesday-Blitz-October-17-2023"]
[Site "Chess.com"]
[Date "2023.10.17"]
[Round "11"]
[White "lluiss"]
[Black "supereagles1201"]
[Result "1/2-1/2"]
[WhiteElo "2169"]
[BlackElo "2354"]
[TimeControl "180+1"]
[EndTime "10:09:10 PDT"]
[Termination "Game drawn by repetition"]

1. Nf3 {[%clk 0:03:00.9]} 1... d5 {[%clk 0:02:59.3]} 2. d4 {[%clk 0:03:00.6]}
2... e6 {[%clk 0:02:56.6]} 3. c4 {[%clk 0:03:01]} 3... a6 {[%clk 0:02:56]} 4.
cxd5 {[%clk 0:03:01.2]} 4... exd5 {[%clk 0:02:55.6]} 5. Nc3 {[%clk 0:03:02.1]}
5... c6 {[%clk 0:02:53.8]} 6. Bg5 {[%clk 0:02:58.6]} 6... Be7 {[%clk 0:02:52.3]}
7. Bxe7 {[%clk 0:02:58]} 7... Qxe7 {[%clk 0:02:48.3]} 8. e3 {[%clk 0:02:58.5]}
8... Bf5 {[%clk 0:02:46.6]} 9. Bd3 {[%clk 0:02:57.9]} 9... Bxd3 {[%clk
0:02:46.5]} 10. Qxd3 {[%clk 0:02:58.8]} 10... Nf6 {[%clk 0:02:46.5]} 11. O-O
{[%clk 0:02:58.1]} 11... Nbd7 {[%clk 0:02:46.5]} 12. Rab1 {[%clk 0:02:56.5]}
12... O-O {[%clk 0:02:42.5]} 13. b4 {[%clk 0:02:55.4]} 13... Ne4 {[%clk
0:02:38.6]} 14. Na4 {[%clk 0:02:52]} 14... Nd6 {[%clk 0:02:35.6]} 15. Nd2 {[%clk
0:02:47.4]} 15... f5 {[%clk 0:02:29.5]} 16. Nc5 {[%clk 0:02:46.9]} 16... Nb6
{[%clk 0:02:28.7]} 17. g3 {[%clk 0:02:40.4]} 17... Kh8 {[%clk 0:02:26.3]} 18. a4
{[%clk 0:02:39.4]} 18... g5 {[%clk 0:02:16.4]} 19. Rbe1 {[%clk 0:02:08.1]} 19...
Rae8 {[%clk 0:02:13.4]} 20. a5 {[%clk 0:01:56.5]} 20... Nbc4 {[%clk 0:02:12.3]}
21. Nxc4 {[%clk 0:01:56.7]} 21... Nxc4 {[%clk 0:02:12.3]} 22. Qc3 {[%clk
0:01:47.4]} 22... Qg7 {[%clk 0:02:07.1]} 23. Kh1 {[%clk 0:01:30.4]} 23... Re7
{[%clk 0:02:05.8]} 24. Nb3 {[%clk 0:01:22.1]} 24... Rfe8 {[%clk 0:02:04.8]} 25.
Nd2 {[%clk 0:01:21.7]} 25... Nd6 {[%clk 0:02:03.3]} 26. Qc5 {[%clk 0:01:19.3]}
26... Ne4 {[%clk 0:01:58.6]} 27. Nxe4 {[%clk 0:01:19.4]} 27... fxe4 {[%clk
0:01:59.2]} 28. Re2 {[%clk 0:00:45.7]} 28... Qf6 {[%clk 0:01:58]} 29. Qc2 {[%clk
0:00:41.7]} 29... Rf8 {[%clk 0:01:53.9]} 30. Rd2 {[%clk 0:00:38.6]} 30... Ref7
{[%clk 0:01:49.6]} 31. Kg1 {[%clk 0:00:38.5]} 31... Qf3 {[%clk 0:01:46.5]} 32.
Qd1 {[%clk 0:00:37.8]} 32... Qxd1 {[%clk 0:01:36.8]} 33. Rfxd1 {[%clk
0:00:36.1]} 33... h5 {[%clk 0:01:35.9]} 34. h3 {[%clk 0:00:35.3]} 34... h4
{[%clk 0:01:34.3]} 35. g4 {[%clk 0:00:34.4]} 35... Rf3 {[%clk 0:01:31.5]} 36.
Kg2 {[%clk 0:00:33.1]} 36... Kg7 {[%clk 0:01:32.1]} 37. Rc1 {[%clk 0:00:33]}
37... R8f6 {[%clk 0:01:29.9]} 38. Rcc2 {[%clk 0:00:32.6]} 38... Kf7 {[%clk
0:01:29.4]} 39. Rd1 {[%clk 0:00:32.5]} 39... Ke7 {[%clk 0:01:29.4]} 40. Rdc1
{[%clk 0:00:32.8]} 40... Kd7 {[%clk 0:01:29.4]} 41. Rd1 {[%clk 0:00:31.4]} 41...
Rf8 {[%clk 0:01:28.6]} 42. Rdc1 {[%clk 0:00:31.5]} 42... R3f6 {[%clk 0:01:27.5]}
43. Ra1 {[%clk 0:00:29.5]} 43... Ra8 {[%clk 0:01:26.5]} 44. Rca2 {[%clk
0:00:28.4]} 44... Rff8 {[%clk 0:01:25.7]} 45. Rc1 {[%clk 0:00:27.1]} 45... Rfb8
{[%clk 0:01:25.5]} 46. Rc5 {[%clk 0:00:27]} 46... b6 {[%clk 0:01:22.5]} 47. axb6
{[%clk 0:00:25.6]} 47... Rxb6 {[%clk 0:01:23.4]} 48. Ra4 {[%clk 0:00:24.4]}
48... Rab8 {[%clk 0:01:21.1]} 49. Rca5 {[%clk 0:00:24.5]} 49... Rxb4 {[%clk
0:01:19.8]} 50. Rxa6 {[%clk 0:00:24.4]} 50... Rxa4 {[%clk 0:01:17.1]} 51. Rxa4
{[%clk 0:00:23.9]} 51... Kc7 {[%clk 0:01:02.6]} 52. Ra7+ {[%clk 0:00:23.2]}
52... Rb7 {[%clk 0:01:02.7]} 53. Ra8 {[%clk 0:00:23.5]} 53... Rb8 {[%clk
0:01:02.5]} 54. Ra7+ {[%clk 0:00:23.8]} 54... Rb7 {[%clk 0:01:02.3]} 55. Ra8
{[%clk 0:00:24.1]} 55... Rb8 {[%clk 0:01:02.3]} 56. Ra7+ {[%clk 0:00:22.5]}
1/2-1/2